Cogmind - Beta 10.2 --- EXPLORER MODE // 2021.01.10 @ 00:35:43 Player: Aeon2927 Result: Destroyed by Y-45 Defender with Beam Rifle Performance ------------- Evolutions (1) 500 Regions Visited (2) 400 Robots Destroyed (27) 135 Value Destroyed (874) 874 Prototype IDs (0) 0 Alien Tech Used (0) 0 Bonus (0) 0 TOTAL SCORE: 1909 Bonus ------- None Cogmind --------- Core Integrity 0/400 Matter 277/300 Energy 100/100 System Corruption 0% Temperature Cool (9) Movement Core (300) Ox5 Location -9/Materials Parts ------- > --- POWER (1) -------- (None) > --- PROPULSION (2) --- (None) > --- UTILITY (5) ------ Large Storage Unit > --- WEAPON (2) ------- (None) > --- INVENTORY (10) --- (None) Peak State ------------ > --- POWER ------------ Light Nuclear Core > --- PROPULSION ------- Aluminum Leg Aluminum Leg > --- UTILITY ---------- Heat Sink Medium Storage Unit Signal Interpreter Terrain Scan Processor Power Shielding > --- WEAPON ----------- Small Laser > --- INVENTORY -------- (None) [Rating: 12] Favorites ----------- Power Light Ion Engine Engine Light Ion Engine Power Core Light Nuclear Core Propulsion Light Treads Treads Light Treads Leg Aluminum Leg Utility Power Shielding Device Sensor Array Storage Medium Storage Unit Processor Signal Interpreter Protection Power Shielding Weapon Light Assault Rifle Energy Gun Small Laser Ballistic Gun Light Assault Rifle Impact Weapon Hammer Build | -11 -10 -9 ------- Run | Scr Mat Mat Slots Evolved 3 | . 1 2 Power . | . . . Propulsion . | . . . Utility 3 | . 1 2 Weapon . | . . . Parts Attached 28 | 7 6 15 Power 4 | 1 . 3 Engine 3 | 1 . 2 Core 1 | . . 1 Reactor . | . . . Propulsion 9 | 2 4 3 Treads 6 | 2 4 . Leg 3 | . . 3 Wheel . | . . . Hover . | . . . Flight . | . . . Utility 7 | 2 1 4 Device 2 | 1 . 1 Storage 2 | . 1 1 Processor 2 | . . 2 Hackware . | . . . Protection 1 | 1 . . Artifact . | . . . Weapon 8 | 2 1 5 Energy Gun 2 | . . 2 Energy Cannon . | . . . Ballistic Gun 3 | 2 1 . Ballistic Cannon . | . . . Launcher . | . . . Special Weapon . | . . . Impact Weapon 3 | . . 3 Slashing Weapon . | . . . Piercing Weapon . | . . . Special Melee Weapon . | . . . Unidentified Prototypes . | . . . Parts Lost 13 | . . 13 Power 2 | . . 2 Propulsion 4 | . . 4 Utility 2 | . . 2 Weapon 5 | . . 5 Highest Loss Streak 5 | . . 5 Average Slot Usage (%) 87 | . 98 78 Engine 7 | . 12 3 Core 2 | . . 3 Treads 14 | . 24 5 Leg 4 | . . 9 Device 12 | . 12 12 Storage 10 | . 12 10 Processor 6 | . . 12 Protection 10 | . 12 8 Energy Gun 2 | . . 3 Ballistic Gun 14 | . 23 6 Naked Turns . | . . . Heaviest Build 25 | 7 16 25 Greatest Support 40 | 40 40 40 Greatest Overweight (x) 6 | 1 4 6 Average Overweight (x) . | . . . Largest Inventory Capacity 10 | 4 8 10 Average Capacity 7 | 4 8 8 Most Carried 6 | 4 6 3 Average Carried 1 | 2 3 . Final Capacity 10 | 4 8 10 Final Carried 4 | 4 3 . Class Distribution -------------------- 100% | Hacker-Mutant Dominant Class ---------------- Hacker-Mutant | -10/Materials Hacker-Mutant | -9/Materials Resources | -11 -10 -9 ----------- Run | Scr Mat Mat Matter Collected 624 | 190 220 214 Remotely . | . . . Salvage Created 1052 | . 375 677 Parts 58 | . 21 37 Haulers Intercepted . | . . . Recyclers Shooed . | . . . Parts Field Recycled . | . . . Retrieved Matter . | . . . Parts Self-Destructed . | . . . Prevented . | . . . Kills | -11 -10 -9 ------- Run | Scr Mat Mat Combat Hostiles Destroyed 23 | . 7 16 Guns 22 | . 7 15 Classes Destroyed 5 | . 2 3 Watcher 4 | . 3 1 Swarmer 3 | . . 3 Grunt 17 | . 7 10 Duelist 1 | . . 1 Sentry 2 | . . 2 Best Kill Streak 3 | . 3 3 Combat Bots Only 3 | . 2 3 Max Kills in Single Turn 1 | . 1 1 Gunslinging . | . . . Exploded . | . . . Melee . | . . . Uniques/NPCs Destroyed . | . . . Combat | -11 -10 -9 -------- Run | Scr Mat Mat Damage Taken 1567 | . 289 1278 Core 457 | . 53 404 Absorbed by Shields . | . . . Core Remaining (%) 89 | 100 78 . Volleys Fired 120 | . 37 83 Largest 2 | . 2 2 Hottest 40 | . 40 40 Shots Fired 187 | . 74 113 Gun 187 | . 74 113 Cannon . | . . . Launcher . | . . . Special . | . . . Kinetic 142 | . 74 68 Thermal 45 | . . 45 Explosive . | . . . Electromagnetic . | . . . Robot Hit Streak 39 | . 39 29 Robot Miss Streak 2 | . 1 2 Penetration Max . | . . . Secondary Targets 3 | . 3 . Max Gunslinging Chain 1 | . 1 . Shots Hit Robots 169 | . 62 107 Core Hits 61 | . 22 39 Critical Hits 4 | . 1 3 Critical Kills 1 | . 1 . Critical Parts Destroyed 3 | . . 3 Melee Attacks 7 | . . 7 Impact 7 | . . 7 Slashing . | . . . Piercing . | . . . Sneak Attacks . | . . . Combat Hostiles . | . . . Follow-up Attacks . | . . . Damage Inflicted 1724 | . 501 1223 Guns 1620 | . 501 1119 Cannons . | . . . Explosions . | . . . Melee 103 | . . 103 Ramming 1 | . . 1 Kinetic 1161 | . 501 660 Thermal 459 | . . 459 Explosive . | . . . Electromagnetic . | . . . Impact 103 | . . 103 Slashing . | . . . Piercing . | . . . Highest Corruption . | . . . Average Corruption . | . . . Corruption Purged . | . . . Overload Shots . | . . . Overflow Damage 20 | . . 20 Projectiles . | . . . Explosions . | . . . Melee 20 | . . 20 Knockbacks 1 | . . 1 Impact 1 | . . 1 Kinetic . | . . . Secondary . | . . . Self-Inflicted Damage . | . . . Shots . | . . . Rammed 1 | . . 1 Targets Rammed 1 | . . 1 Kicked . | . . . Crushed . | . . . Highest Temperature 31 | . 31 1 Average Temperature 13 | . 13 1 Received Heat Transfer 1035 | . 261 774 Siege Activations . | . . . Robots Corrupted . | . . . Combat Hostiles . | . . . Parts Fried 1 | . . 1 Impact Corruptions 2 | . . 2 Robots Melted . | . . . Combat Hostiles . | . . . Parts Melted 1 | . . 1 Heat Transferred 1025 | . . 1025 Parts Sabotaged . | . . . Parts Stolen . | . . . Parts Stripped . | . . . Power Chain Reactions . | . . . Missiles Intercepted . | . . . Alert | -11 -10 -9 ------- Run | Scr Mat Mat Peak Influence 261 | . 179 261 Initial 16 | . . 16 Average 77 | . 42 122 Maximum Alert Level 1 | . . 1 Low Security (%) 89 | 100 100 78 Level 1 10 | . . 21 Level 2 . | . . . Level 3 . | . . . Level 4 . | . . . Level 5 . | . . . High Security . | . . . Max Security . | . . . Squads Dispatched 1 | . . 1 Investigation . | . . . Extermination . | . . . Reinforcement 1 | . . 1 Assault . | . . . Garrison . | . . . Intercept . | . . . Construction Impeded . | . . . Haulers Reinforced . | . . . Stealth | -11 -10 -9 --------- Run | Scr Mat Mat Distress Signals 1 | . 1 . Communications Jammed . | . . . Distress Signals . | . . . Times Spotted 35 | . 11 24 Peak Tracking Total 5 | . 5 4 Tactical Retreats . | . . . Traps | -11 -10 -9 ------- Run | Scr Mat Mat Traps Triggered 5 | . 2 3 Indirectly . | . . . Trap Hack Attempts . | . . . Triggered . | . . . Disarmed . | . . . Reprogrammed . | . . . Reused . | . . . Traps Extracted . | . . . Installed . | . . . Triggered . | . . . Machines | -11 -10 -9 ---------- Run | Scr Mat Mat Machines Disabled . | . . . Max in Single Turn . | . . . Machines Sabotaged . | . . . Garrisons Compromised . | . . . Overloaded Fab Kills . | . . . Fab Network Shutdowns . | . . . Hacking | -11 -10 -9 --------- Run | Scr Mat Mat Machines Accessed 7 | . 5 2 Terminals 7 | . 5 2 Fabricators . | . . . Repair Stations . | . . . Recycling Units . | . . . Scanalyzers . | . . . Garrison Access . | . . . Total Hacks 21 | . 15 6 Successful 17 | . 13 4 Failed 4 | . 2 2 Catastrophic . | . . . Database Lockouts . | . . . Manual . | . . . Terminals 21 | . 15 6 Fabricators . | . . . Repair Stations . | . . . Recycling Units . | . . . Scanalyzers . | . . . Garrison Access . | . . . Terminal Hacks 17 | . 13 4 Record 10 | . 9 1 Robot Analysis 1 | . 1 . Alert Level 1 | . 1 . Dispatch Records 1 | . 1 . Investigation Status 1 | . . 1 Recall Investigation 1 | . . 1 Recall Reinforcements 1 | . . 1 Zone Layout 1 | . 1 . Fabricator Hacks . | . . . Repair Station Hacks . | . . . Recycling Unit Hacks . | . . . Scanalyzer . | . . . Garrison Access Hacks . | . . . Unauthorized Hacks . | . . . Terminals . | . . . Fabricators . | . . . Repair Stations . | . . . Recycling Units . | . . . Scanalyzers . | . . . Garrison Access . | . . . Data Cores Recovered . | . . . Used . | . . . Hacking Detections 6 | . 4 2 Full Trace Events . | . . . Feedback Events . | . . . Feedback Blocked . | . . . Robot Schematics Acquired . | . . . Robots Built . | . . . Matter . | . . . Time . | . . . Total Robot Build Rating . | . . . Part Schematics Acquired . | . . . Parts Built . | . . . Matter . | . . . Time . | . . . Total Part Build Rating . | . . . Parts Repaired . | . . . Time . | . . . Parts Recycled . | . . . Recycled Matter . | . . . Retrieved Matter . | . . . Retrieved Components . | . . . Parts Scanalyzed . | . . . Part Schematics Acquired . | . . . Parts Damaged . | . . . Bothacking | -11 -10 -9 ------------ Run | Scr Mat Mat Used RIF Installer . | . . . Robots Hacked . | . . . Non-combat . | . . . Combat . | . . . Robot Hacks Applied . | . . . Relay Couplers Released . | . . . Robots Rewired . | . . . Allies Hacked . | . . . Hacks Repelled . | . . . Allies | -11 -10 -9 -------- Run | Scr Mat Mat Total Allies . | . . . Largest Group . | . . . Highest-Rated Group . | . . . Highest-Rated Ally . | . . . Total Orders . | . . . Ally Attacks . | . . . Total Damage . | . . . Kills . | . . . Allies Corrupted . | . . . Allies Melted . | . . . Intel | -11 -10 -9 ------- Run | Scr Mat Mat Robot Analysis Total 1 | . 1 . Derelict Logs Recovered . | . . . Drone Launches . | . . . Drone Recoveries . | . . . Exploration | -11 -10 -9 ------------- Run | Scr Mat Mat Turns Passed 1576 | 143 673 760 Spaces Moved 763 | 85 345 333 Core 49 | 12 4 33 Treads 522 | 73 341 108 Legs 192 | . . 192 Wheels . | . . . Hover . | . . . Flight . | . . . Fastest Speed 50 | 50 160 120 Average Speed 155 | 148 161 151 Slowest Speed 350 | 160 250 350 Overloaded Moves . | . . . Propulsion Burnouts . | . . . Robots Hopped . | . . . Cave-ins Triggered . | . . . Exploration Rate (%) 31 | 5 60 29 Regions Visited 2 Branch Regions . Pre-discovered Areas . | . . . Known Exits Taken 2 | 1 1 . Unknown Exits Taken . | . . . Scrap Searched . | . . . Spaces Dug . | . . . Terrain Destroyed . | . . . Melee . | . . . Projectile . | . . . AOE . | . . . Terrain Rammed . | . . . Walls Destroyed . | . . . Machines Disabled . | . . . Actions | -11 -10 -9 --------- Run | Scr Mat Mat Total 975 | 102 403 470 Wait 28 | . 11 17 Move 761 | 84 344 333 Hop . | . . . Pick Up 28 | 11 5 12 Fast Attach . | . . . Attach 26 | 7 6 13 Detach . | . . . Swap 2 | . . 2 Drop 2 | . . 2 Fire 120 | . 37 83 Melee 7 | . . 7 Ram . | . . . Kick 1 | . . 1 Crush . | . . . Escape Stasis . | . . . Rewire . | . . . Trap . | . . . Miscellaneous . | . . . Route ------- -11/Scrapyard -10/Materials (discovered 4 exits: *Mat x3 / *Min) -9/Materials (discovered 2 exits: *Mat x2) History --------- Turn | Location | Event 20 | -11/Scrapyard | Identified exit to Materials 20 | -11/Scrapyard | Discovered exit to Materials (range 14) 144 | -11/Scrapyard | Entered Materials 144 | -10/Materials | Evolved 1 slot: Utility x1 232 | -10/Materials | Identified exit to Mines 232 | -10/Materials | Discovered exit to Mines (range 12) 302 | -10/Materials | Build established: Hacker-Mutant 398 | -10/Materials | Identified exit to Materials 398 | -10/Materials | Discovered exit to Materials (range 8) 525 | -10/Materials | Discovered exit to Materials (range 9) 771 | -10/Materials | Discovered exit to Materials (range 9) 817 | -10/Materials | Entered another Materials area 817 | -9/Materials | Evolved 2 slots: Utility x2 1150 | -9/Materials | Lost 5 parts (1p1n1u2w) 1302 | -9/Materials | Identified exit to Materials 1302 | -9/Materials | Discovered exit to Materials (range 13) 1488 | -9/Materials | Core integrity fell below 50% 1512 | -9/Materials | Lost 3 parts (1n1u1w) 1539 | -9/Materials | Core integrity fell below 20% 1563 | -9/Materials | Lost 3 parts (1n2w) 1566 | -9/Materials | Discovered exit to Materials (range 7) 1577 | -9/Materials | Destroyed by Y-45 Defender with Beam Rifle Last Messages --------------- 01481_ Hammer severed. 01486_ Acquired Hammer. 01492_ Triggered Blade Trap. 01492_ Massive razor-sharp blades shoot up from within the floor. 01492_ Hammer severed. 01492_ Terrain Scan Processor severed. 01495_ Acquired Aluminum Leg. 01496_ Triggered Blade Trap. 01496_ Massive razor-sharp blades shoot up from within the floor. 01496_ Signal Interpreter severed. 01496_ Power Shielding severed. 01498_ U-05 Engineer lays Concrete. 01499_ Acquired Hammer. 01500_ U-05 Engineer lays Concrete. 01517_ Hammer destroyed. 01529_ Sml. Laser destroyed. 01531_ Slammed into Y-45 Defender. 01532_ Aluminum Leg destroyed. 01546_ K-01 Serf collects debris. 01566_ EXIT=FOUND: MATERIALS Map ----- +----------------------------------------------------+ | | | | | | | | | | | | | | | | | | | | | | | ?????????????????????????????????????????????????? | | ?????????????????????????????????????????????????? | | ?????????????????????????????????????????????????? | | ?????????????????????????????????????????????????? | | ?????????????????????????????????????????????????? | | ?????????????????????????????????????????????????? | | ?????????????????????????????????????????????????? | | ?????????????????????????????????????????????????? | | ???????????????????######????????????????????????? | | ???????????????????? ?????????????????????? ? | | ?????????????????????# < ?????????????????????? ? | | ?????????????????????# ?????????????????????? # | | ?????????????????????# ########?????????????# # | | ?????????????????????# #?????????????# # | | ?????????????????????# @ #????????####?# # | | ?????????????????????# Y #????????#** ## # | | ?????????????????????# ###### #????????#** | | ?????????????????????#??????# #????????#!! | | ????????????????????????????# #????????#!! | | ????????????????????????????# #????????#!! "" | | ????????????????????????????# #??????????! "" | | ????????????????????????????# #????????????# "" | | ???????????????????????????## ##???????????# | | ???????????????????????????# ############# | | ???????????????????????????# % | | ???????????????????????????# ^ % | | ???????????????????????????# !* ! | | ???????????????????????????# ################# | | ???????????????????????????#######????????????#### | | ?????????????????????????????????????????????##!!! | | ?????????????????????????????????????????????#! | | ?????????????????????????????????????????????#! | | ????????????????????????????????????????????## | | ????????????????????????????????????????????# | | ????????????????????????????????????????????+ | | ????????????????????????????????????????????# | | ????????????????????????????????????????????# | | ????????????????????????????????????????????# | | ????????????????????????????????????????????# " | +----------------------------------------------------+ Best States ------------- Heat Dissipation 38 Energy Generation 14 Energy Capacity 250 Matter Stores 300 Matter Capacity 300 Sight Range 16 Robot Scan Range 10 Terrain Scan Density 85 Resistance: KI 35 Resistance: TH 35 Resistance: EX 35 Resistance: EM 35 Resistance: I 35 Resistance: S 35 Resistance: P 35 Power Shielding 33 Evasion (%) 40 Recoil Reduction 2 Offensive Hacking 20 Item Schematics ----------------- None Robot Schematics ------------------ None Fabricated ------------ Nothing Alien Tech Used ----------------- None Achievements -------------- None Challenges ------------ None Game ------ Seed ScanSegregatorThrower Manual? 0 Play Time 00:26:59 Cumulative 18.6 hours Start 2021.01.07 @ 23:31:28 End 2021.01.10 @ 00:35:43 Sessions 2 Manual Loads 0 Difficulty Explorer Special Mode None Game No. 21 Rogue 8 Adventurer 0 Explorer 13 Win Type - Total 2 Types 2/0/0/0/0/0/0/0/0 Lore% 11 Gallery% 31 Achievement% 28 Wizard Run 0 Options --------- ASCII 0 Keyboard 0 Movement Mouse Keybinds 0 Fullscreen 1 Font 18/Terminus Map View 76x50 Tactical HUD 1 Map Filters NONE Filters NONE Steam 1 RUN: b4decdf8-1df0-49ba-9403-4ad4c322c404